lending/lending_fUSD_20240621
["ID","MTS","AMOUNT","RATE_DAILY","PERIOD"]
[330080166,1718989363270,-500.0,0.00022191,4]
[330080167,1718989363305,-500.0,0.00022191,4]
[330080168,1718989363341,-500.0,0.00022191,4]
[330080169,1718989363378,-500.0,0.00022191,4]
[330080170,1718989363416,-500.0,0.00022191,4]
[330080171,1718989363451,-499.99,0.00022191,2]
[330080172,1718989363487,-1723.02,0.00022191,4]
[330080173,1718989363524,-500.0,0.00022191,4]
[330080174,1718989363564,-6765.8,0.00022191,4]
[330080175,1718989363602,-500.0,0.00022191,4]
[330080176,1718989363642,-500.0,0.00022191,4]
[330080177,1718989363681,-500.0,0.00022191,4]
[330080178,1718989363720,-500.0,0.00022191,4]
[330080179,1718989363759,-883.79,0.00022191,4]
[330080180,1718989363796,-500.0,0.00022191,4]
[330080181,1718989363835,-500.0,0.00022191,4]
[330080182,1718989363872,-543.33334571,0.00022191,4]
[330080183,1718989363912,-500.0,0.00022191,4]
[330080184,1718989363957,-6115.325386,0.00022253,2]
[330080185,1718989364004,-211.996297,0.00022253,2]
[330080186,1718989364044,-187.89378223,0.00022453,2]
[330080187,1718989364083,-3123.99498311,0.00022453,2]
[330080188,1718989364124,-1069.4164457,0.00022453,2]
[330080189,1718989364164,-2827.40811708,0.00022453,2]
[330080190,1718989364202,-2488.2907628,0.00022453,2]
[330080191,1718989364239,-500.0,0.00022454,4]
[330080192,1718989364275,-500.0,0.00022454,4]
[330080193,1718989364312,-2656.19,0.00022454,4]
[330080194,1718989364355,-500.0,0.00022454,4]
[330080195,1718989364393,-500.0,0.00022454,4]
[330080196,1718989364431,-19840.94,0.00022454,4]
[330080197,1718989364472,-1490.78,0.00022454,4]
[330080198,1718989364512,-500.0,0.00022454,4]
[330080199,1718989364648,-500.0,0.00022454,4]
[330080200,1718989364690,-500.0,0.00022454,4]
[330080201,1718989364729,-500.0,0.00022454,4]
[330080202,1718989364770,-500.0,0.00022454,4]
[330080203,1718989364811,-500.0,0.00022454,4]
[330080204,1718989364851,-500.0,0.00022454,4]
[330080205,1718989364890,-330.02435568,0.00022454,4]
[330080206,1718989364934,-500.0,0.00022454,4]
[330080207,1718989364976,-500.0,0.00022454,4]
[330080208,1718989365016,-500.0,0.00022454,4]
[330080209,1718989365056,-500.0,0.00022454,4]
[330080210,1718989365098,-48826.68,0.00022454,4]
[330080211,1718989365139,-500.0,0.00022454,4]
[330080212,1718989365180,-703.12,0.00022464,4]
[330080213,1718989365222,-2936.63,0.00022464,4]
[330080214,1718989365262,-500.0,0.00022464,4]
[330080215,1718989365302,-3039.72,0.00022464,4]
[330080216,1718989365343,-500.0,0.00022464,4]
[330080217,1718989365382,-554.48,0.00022465,4]
[330080218,1718989365425,-12807.51,0.00022465,4]
[330080219,1718989365465,-500.0,0.00022465,4]
[330080220,1718989365506,-179.02480583,0.00022465,4]
[330080221,1718989365547,-500.0,0.00022465,4]
[330080222,1718989365589,-2433.25,0.00022465,4]
[330080223,1718989365636,-500.0,0.00022465,4]
[330080224,1718989365677,-500.0,0.00022465,4]
[330080225,1718989365718,-500.0,0.00022465,4]
[330080226,1718989365759,-500.0,0.00022465,4]
[330080227,1718989365799,-500.0,0.00022465,4]
[330080228,1718989365840,-500.0,0.00022465,4]
[330080229,1718989365881,-500.0,0.00022465,4]
[330080230,1718989365932,-500.0,0.00022465,4]
[330080231,1718989365974,-1723.02,0.00022465,4]
[330080232,1718989366015,-500.0,0.00022465,4]
[330080233,1718989366057,-6765.8,0.00022465,4]
[330080234,1718989366098,-427.95626408,0.00022465,4]
[330080235,1718989366140,-500.0,0.00022465,4]
[330080236,1718989366181,-420.63359788,0.00022465,4]
[330080237,1718989366223,-500.0,0.00022465,4]
[330080238,1718989366264,-883.79,0.00022465,4]
[330080239,1718989366303,-500.0,0.00022465,4]
[330080240,1718989366342,-500.0,0.00022465,4]
[330080241,1718989366384,-500.0,0.00022465,4]
[330080242,1718989366425,-181.438469,0.00022521,2]
[330080243,1718989366465,-6115.325386,0.00022521,2]
[330080244,1718989366505,-211.996297,0.00022521,2]
[330080245,1718989366543,-500.0,0.00022728,4]
[330080246,1718989366580,-500.0,0.00022728,4]
[330080247,1718989366616,-2656.19,0.00022728,4]
[330080248,1718989366656,-500.0,0.00022728,4]
[330080249,1718989366695,-500.0,0.00022728,4]
[330080250,1718989366734,-19840.94,0.00022728,4]
[330080251,1718989366771,-1490.78,0.00022728,4]
[330080252,1718989366808,-500.0,0.00022728,4]
[330080253,1718989366846,-535.46,0.00022728,4]
[330080254,1718989366888,-500.0,0.00022728,4]
[330080255,1718989366929,-500.0,0.00022728,4]
[330080256,1718989366972,-500.0,0.00022728,4]
[330080257,1718989367016,-500.0,0.00022728,4]
[330080258,1718989367056,-500.0,0.00022728,4]
[330080259,1718989367094,-500.0,0.00022728,4]
[330080260,1718989367135,-500.0,0.00022728,4]
[330080261,1718989367175,-500.0,0.00022728,4]
[330080262,1718989367218,-48826.68,0.00022728,4]
[330080263,1718989367259,-500.0,0.00022728,4]
[330080264,1718989367301,-703.12,0.00022738,4]
[330080265,1718989367338,-2936.63,0.00022738,4]
[330080266,1718989367378,-500.0,0.00022738,4]
[330080267,1718989367417,-3039.72,0.00022738,4]
[330080268,1718989367457,-500.0,0.00022738,4]
[330080269,1718989367497,-3105.79028967,0.00022738,2]
[330080270,1718989367533,-554.48,0.00022739,4]
[330080271,1718989367570,-12807.51,0.00022739,4]
[330080272,1718989367608,-500.0,0.00022739,4]
[330080273,1718989367646,-500.0,0.00022739,4]
[330080274,1718989367682,-2433.25,0.00022739,4]
[330080275,1718989367723,-500.0,0.00022739,4]
[330080276,1718989367761,-500.0,0.00022739,4]
[330080277,1718989367797,-500.0,0.00022739,4]
[330080278,1718989367835,-500.0,0.00022739,4]
[330080279,1718989367875,-500.0,0.00022739,4]
[330080280,1718989367913,-500.0,0.00022739,4]
[330080281,1718989367953,-500.0,0.00022739,4]
[330080282,1718989367992,-500.0,0.00022739,4]
[330080283,1718989368032,-500.0,0.00022739,4]
[330080284,1718989368072,-6765.8,0.00022739,4]
[330080285,1718989368110,-500.0,0.00022739,4]
[330080286,1718989368148,-883.79,0.00022739,4]
[330080287,1718989368185,-500.0,0.00022739,4]
[330080288,1718989368223,-500.0,0.00022739,4]
[330080289,1718989368261,-219.73,0.00022877,2]
[330080290,1718989368298,-2827.40811708,0.00022989,2]
[330080291,1718989368335,-437.90975551,0.00022989,2]
[330080292,1718989368374,-366.0285791,0.00022989,2]
[330080293,1718989368412,-10000.0,0.00022989,2]
[330080294,1718989368456,-548849.39827525,0.0002299,4]
[330080295,1718989368493,-732.0,0.0002299,2]
[330080296,1718989368531,-3968513.83870867,0.0002299,5]
[330080297,1718989373816,-11315.47936,0.00021448,2]
[330080298,1718989373857,-796.11,0.00021607,2]
[330080299,1718989373988,-11315.47936,0.00021717,2]
[330080300,1718989374032,-500.0,0.00021917,4]
[330080301,1718989374075,-500.0,0.00021917,4]
[330080302,1718989374127,-768.74,0.00021917,4]
[330080303,1718989374174,-2865.42,0.00021917,4]
[330080304,1718989374217,-500.0,0.00021917,4]
[330080305,1718989374259,-500.0,0.00021917,4]
[330080306,1718989374298,-5985.46,0.00021917,4]
[330080307,1718989374341,-500.0,0.00021917,4]
[330080308,1718989374381,-500.0,0.00021917,4]
[330080309,1718989374425,-1467.03,0.00021917,4]
[330080310,1718989374475,-3997.22,0.00021917,4]
[330080311,1718989374523,-500.0,0.00021917,4]
[330080312,1718989374564,-605.19,0.00021917,4]
[330080313,1718989374606,-500.0,0.00021917,4]
[330080314,1718989374651,-500.0,0.00021917,4]
[330080315,1718989374690,-500.0,0.00021917,4]
[330080316,1718989374731,-500.0,0.00021917,4]
[330080317,1718989374772,-500.0,0.00021917,4]
[330080318,1718989374812,-500.0,0.00021917,4]
[330080319,1718989374854,-1066.65,0.00021917,4]
[330080320,1718989374900,-11315.47936,0.00021985,2]
[330080321,1718989374944,-7500.0,0.00022091,2]
[330080322,1718989374986,-500.0,0.0002218,4]
[330080323,1718989375029,-500.0,0.0002218,4]
[330080324,1718989375072,-500.0,0.0002218,4]
[330080325,1718989375115,-500.0,0.0002218,4]
[330080326,1718989375157,-1759.77,0.0002218,4]
[330080327,1718989375196,-500.0,0.0002218,4]
[330080328,1718989375238,-500.0,0.0002218,4]
[330080329,1718989375281,-1550.7,0.0002218,4]
[330080330,1718989375323,-500.0,0.0002218,4]
[330080331,1718989375364,-500.0,0.0002218,4]
[330080332,1718989375408,-2677.45,0.0002218,4]
[330080333,1718989375459,-500.0,0.0002218,4]
[330080334,1718989375501,-500.0,0.0002218,4]
[330080335,1718989375543,-500.0,0.0002218,4]
[330080336,1718989375584,-500.0,0.0002218,4]
[330080337,1718989375629,-500.0,0.0002218,4]
[330080338,1718989375675,-471.1507664,0.0002218,4]
[330080339,1718989375722,-500.0,0.0002219,4]
[330080340,1718989375764,-952.9,0.0002219,4]
[330080341,1718989375807,-1792.19,0.0002219,4]
[330080342,1718989375853,-1246.83,0.0002219,4]
[330080343,1718989375898,-500.0,0.00022191,4]
[330080344,1718989375944,-500.0,0.00022191,4]
[330080345,1718989375987,-768.74,0.00022191,4]
[330080346,1718989376032,-2865.42,0.00022191,4]
[330080347,1718989376077,-500.0,0.00022191,4]
[330080348,1718989376119,-500.0,0.00022191,4]
[330080349,1718989376162,-5985.46,0.00022191,4]
[330080350,1718989376205,-500.0,0.00022191,4]
[330080351,1718989376250,-500.0,0.00022191,4]
[330080352,1718989376294,-1467.03,0.00022191,4]
[330080353,1718989376338,-3997.22,0.00022191,4]
[330080354,1718989376382,-500.0,0.00022191,4]
[330080355,1718989376428,-500.0,0.00022191,4]
[330080356,1718989376470,-500.0,0.00022191,4]
[330080357,1718989376511,-197.36,0.00022191,4]
[330080358,1718989376555,-500.0,0.00022191,4]
[330080359,1718989376605,-500.0,0.00022191,4]
[330080360,1718989376649,-500.0,0.00022191,4]
[330080361,1718989376694,-1066.65,0.00022191,4]
[330080362,1718989376737,-6360.105301,0.00022253,2]
[330080363,1718989376778,-11315.47936,0.00022253,2]
[330080364,1718989376821,-354.76117684,0.00022269,2]
[330080365,1718989376867,-354.76117684,0.00022357,2]
[330080366,1718989376911,-354.76117684,0.00022446,2]
[330080367,1718989376957,-500.0,0.00022454,4]
[330080368,1718989377001,-500.0,0.00022454,4]
[330080369,1718989377048,-500.0,0.00022454,4]
[330080370,1718989377090,-500.0,0.00022454,4]
[330080371,1718989377132,-1759.77,0.00022454,4]
[330080372,1718989377178,-500.0,0.00022454,4]
[330080373,1718989377220,-500.0,0.00022454,4]
[330080374,1718989377261,-1550.7,0.00022454,4]
[330080375,1718989377299,-500.0,0.00022454,4]
[330080376,1718989377337,-500.0,0.00022454,4]
[330080377,1718989377378,-500.0,0.00022454,4]
[330080378,1718989377424,-500.0,0.00022454,4]
[330080379,1718989377466,-2677.45,0.00022454,4]
[330080380,1718989377508,-500.0,0.00022454,4]
[330080381,1718989377550,-500.0,0.00022454,4]
[330080382,1718989377591,-500.0,0.00022454,4]
[330080383,1718989377628,-500.0,0.00022464,4]
[330080384,1718989377670,-952.9,0.00022464,4]
[330080385,1718989377709,-1792.19,0.00022464,4]
[330080386,1718989377749,-1246.83,0.00022464,4]
[330080387,1718989377788,-500.0,0.00022465,4]
[330080388,1718989377827,-500.0,0.00022465,4]
[330080389,1718989377865,-768.74,0.00022465,4]
[330080390,1718989377906,-2865.42,0.00022465,4]
[330080391,1718989377946,-500.0,0.00022465,4]
[330080392,1718989377984,-500.0,0.00022465,4]
[330080393,1718989378024,-5985.46,0.00022465,4]
[330080394,1718989378064,-500.0,0.00022465,4]
[330080395,1718989378103,-500.0,0.00022465,4]
[330080396,1718989378142,-1467.03,0.00022465,4]
[330080397,1718989378185,-3997.22,0.00022465,4]
[330080398,1718989378226,-500.0,0.00022465,4]
[330080399,1718989378266,-500.0,0.00022465,4]
[330080400,1718989378306,-500.0,0.00022465,4]
[330080401,1718989378345,-500.0,0.00022465,4]
[330080402,1718989378385,-500.0,0.00022465,4]
[330080403,1718989378426,-500.0,0.00022465,4]
[330080404,1718989378466,-1066.65,0.00022465,4]
[330080405,1718989378509,-6360.105301,0.00022521,2]
[330080406,1718989378550,-11315.47936,0.00022521,2]
[330080407,1718989378592,-1094.66432919,0.0002253,2]
[330080408,1718989378634,-354.76117684,0.00022535,2]
[330080409,1718989378677,-509.27,0.00022728,4]
[330080410,1718989378717,-500.0,0.00022728,4]
[330080411,1718989378756,-500.0,0.00022728,4]
[330080412,1718989378795,-500.0,0.00022728,4]
[330080413,1718989378834,-1759.77,0.00022728,4]
[330080414,1718989378874,-500.0,0.00022728,4]
[330080415,1718989378912,-500.0,0.00022728,4]
[330080416,1718989378959,-1550.7,0.00022728,4]
[330080417,1718989379004,-500.0,0.00022728,4]
[330080418,1718989379054,-500.0,0.00022728,4]
[330080419,1718989379243,-582.8,0.00022728,4]
[330080420,1718989379284,-500.0,0.00022728,4]
[330080421,1718989379326,-2677.45,0.00022728,4]
[330080422,1718989379370,-500.0,0.00022728,4]
[330080423,1718989379413,-500.0,0.00022728,4]
[330080424,1718989379453,-500.0,0.00022728,4]
[330080425,1718989379497,-500.0,0.00022738,4]
[330080426,1718989379541,-952.9,0.00022738,4]
[330080427,1718989379583,-1792.19,0.00022738,4]
[330080428,1718989379623,-1246.83,0.00022738,4]
[330080429,1718989379666,-500.0,0.00022739,4]
[330080430,1718989379707,-500.0,0.00022739,4]
[330080431,1718989379751,-500.0,0.00022739,4]
[330080432,1718989379790,-768.74,0.00022739,4]
[330080433,1718989379828,-2865.42,0.00022739,4]
[330080434,1718989379868,-500.0,0.00022739,4]
[330080435,1718989379909,-500.0,0.00022739,4]
[330080436,1718989379947,-5985.46,0.00022739,4]
[330080437,1718989379992,-500.0,0.00022739,4]
[330080438,1718989380035,-500.0,0.00022739,4]
[330080439,1718989380078,-1467.03,0.00022739,4]
[330080440,1718989380119,-3997.22,0.00022739,4]
[330080441,1718989380159,-500.0,0.00022739,4]
[330080442,1718989380200,-500.0,0.00022739,4]
[330080443,1718989380241,-500.0,0.00022739,4]
[330080444,1718989380287,-500.0,0.00022739,4]
[330080445,1718989380326,-500.0,0.00022739,4]
[330080446,1718989380366,-1066.65,0.00022739,4]
[330080447,1718989380407,-1262.77288771,0.00022769,2]
[330080448,1718989380448,-353.29860112,0.0002289,2]
[330080449,1718989380486,-737.87090726,0.0002289,2]
[330080450,1718989380526,-637.52593286,0.0002289,2]
[330080451,1718989380567,-3963.22039009,0.00022989,2]
[330080452,1718989380604,-209.38100041,0.00022989,2]
[330080453,1718989380645,-5907.85263176,0.00022989,2]
[330080454,1718989380686,-526.28955324,0.00022989,2]
[330080455,1718989380726,-155.0,0.00022989,2]
[330080456,1718989380766,-298.3782139,0.00022989,2]
[330080457,1718989380804,-158.80388924,0.00022989,2]
[330080458,1718989380842,-155.0,0.00022989,2]
[330080459,1718989380881,-442.81450919,0.0002299,5]
[330080460,1718989380921,-4763676.99427827,0.0002299,5]
[330080461,1718989381788,-150.0,0.00021917,4]
[330080462,1718989381829,-150.0,0.00021917,4]
[330080463,1718989382262,-150.0,0.00021917,4]
[330080464,1718989382312,-50.0,0.00021917,4]
[330080465,1718989382334,-100.0,0.00021917,4]
[330080466,1718989382400,-150.0,0.00021917,4]
[330080467,1718989382453,-150.0,0.00021917,4]
[330080468,1718989382508,-150.0,0.00021917,4]
[330080469,1718989382542,-150.0,0.00021917,4]
[330080470,1718989382597,-35.92,0.00021917,4]
[330080471,1718989382621,-114.08,0.00021917,4]
[330080472,1718989382664,-150.0,0.00021917,4]
[330080473,1718989382718,-150.0,0.00021917,4]
[330080474,1718989382834,-85.92,0.00021917,4]
[330080475,1718989382858,-64.08,0.00021917,4]
[330080476,1718989382897,-181.87001375,0.00021917,4]
[330080477,1718989387777,-254.04998625,0.00021917,4]
[330080478,1718989387819,-500.0,0.00021917,4]
[330080479,1718989387860,-500.0,0.00021917,4]
[330080480,1718989387901,-500.0,0.00021917,4]
[330080481,1718989387947,-1986.94,0.00021917,4]
[330080482,1718989387994,-500.0,0.00021917,4]
[330080483,1718989388038,-500.0,0.00021917,4]
[330080484,1718989388078,-500.0,0.00021917,4]
[330080485,1718989388120,-500.0,0.00021917,4]
[330080486,1718989388162,-500.0,0.00021917,4]
[330080487,1718989388201,-899.57,0.00021917,4]
[330080488,1718989388242,-1342.26,0.00021917,4]
[330080489,1718989388286,-500.0,0.0002218,4]
[330080490,1718989388330,-500.0,0.0002218,4]
[330080491,1718989388369,-500.0,0.0002218,4]
[330080492,1718989388408,-562.58,0.0002218,4]
[330080493,1718989388446,-500.0,0.0002218,4]
[330080494,1718989388482,-500.0,0.0002218,4]
[330080495,1718989388521,-500.0,0.0002218,4]
[330080496,1718989388564,-3499.86,0.0002218,4]
[330080497,1718989388612,-500.0,0.0002218,4]
[330080498,1718989388656,-497.47783859,0.0002218,4]
[330080499,1718989388696,-500.0,0.0002218,4]
[330080500,1718989388734,-1118.22,0.0002218,4]
[330080501,1718989388772,-404.88455126,0.0002218,4]
[330080502,1718989388808,-500.0,0.0002218,4]
[330080503,1718989388844,-645.07,0.0002219,4]
[330080504,1718989388880,-8010.79,0.0002219,4]
[330080505,1718989390239,-500.0,0.0002219,4]
[330080506,1718989390285,-500.0,0.00022191,4]
[330080507,1718989390325,-735.92,0.00022191,4]
[330080508,1718989390364,-500.0,0.00022191,4]
[330080509,1718989390405,-500.0,0.00022191,4]
[330080510,1718989390445,-500.0,0.00022191,4]
[330080511,1718989390485,-500.0,0.00022191,4]
[330080512,1718989390528,-500.0,0.00022191,4]
[330080513,1718989390571,-1986.94,0.00022191,4]
[330080514,1718989390612,-500.0,0.00022191,4]
[330080515,1718989390655,-500.0,0.00022191,4]
[330080516,1718989390698,-500.0,0.00022191,4]
[330080517,1718989390741,-500.0,0.00022191,4]
[330080518,1718989390784,-587.11525831,0.00022191,4]
[330080519,1718989390827,-899.57,0.00022191,4]
[330080520,1718989390871,-1342.26,0.00022191,4]
[330080521,1718989390913,-500.0,0.00022454,4]
[330080522,1718989390956,-500.0,0.00022454,4]
[330080523,1718989390998,-562.58,0.00022454,4]
[330080524,1718989391039,-500.0,0.00022454,4]
[330080525,1718989391082,-500.0,0.00022454,4]
[330080526,1718989391133,-500.0,0.00022454,4]
[330080527,1718989391184,-3499.86,0.00022454,4]
[330080528,1718989391226,-500.0,0.00022454,4]
[330080529,1718989391267,-500.0,0.00022454,4]
[330080530,1718989391308,-1118.22,0.00022454,4]
[330080531,1718989391348,-645.07,0.00022464,4]
[330080532,1718989391386,-8010.79,0.00022464,4]
[330080533,1718989391429,-500.0,0.00022464,4]
[330080534,1718989391470,-735.92,0.00022465,4]
[330080535,1718989391510,-500.0,0.00022465,4]
[330080536,1718989391549,-500.0,0.00022465,4]
[330080537,1718989391588,-500.54159163,0.00022465,4]
[330080538,1718989391626,-500.0,0.00022465,4]
[330080539,1718989391668,-500.0,0.00022465,4]
[330080540,1718989391710,-1986.94,0.00022465,4]
[330080541,1718989391748,-500.0,0.00022465,4]
[330080542,1718989391786,-500.0,0.00022465,4]
[330080543,1718989391826,-500.0,0.00022465,4]
[330080544,1718989391864,-500.0,0.00022465,4]
[330080545,1718989391905,-195.68269582,0.00022465,4]
[330080546,1718989391952,-899.57,0.00022465,4]
[330080547,1718989391990,-1342.26,0.00022465,4]
[330080548,1718989392030,-354.76117684,0.00022624,2]
[330080549,1718989392070,-354.76117684,0.00022712,2]
[330080550,1718989392110,-500.0,0.00022728,4]
[330080551,1718989392148,-500.0,0.00022728,4]
[330080552,1718989392188,-562.58,0.00022728,4]
[330080553,1718989392224,-500.0,0.00022728,4]
[330080554,1718989392263,-500.0,0.00022728,4]
[330080555,1718989392298,-500.0,0.00022728,4]
[330080556,1718989392333,-3499.86,0.00022728,4]
[330080557,1718989392369,-500.0,0.00022728,4]
[330080558,1718989392409,-500.0,0.00022728,4]
[330080559,1718989392444,-1118.22,0.00022728,4]
[330080560,1718989392481,-645.07,0.00022738,4]
[330080561,1718989392518,-8010.79,0.00022738,4]
[330080562,1718989392554,-500.0,0.00022738,4]
[330080563,1718989392591,-735.92,0.00022739,4]
[330080564,1718989392628,-500.0,0.00022739,4]
[330080565,1718989392667,-500.0,0.00022739,4]
[330080566,1718989392705,-500.0,0.00022739,4]
[330080567,1718989392742,-500.0,0.00022739,4]
[330080568,1718989392780,-1986.94,0.00022739,4]
[330080569,1718989392817,-383.79,0.00022739,4]
[330080570,1718989392856,-500.0,0.00022739,4]
[330080571,1718989392895,-500.0,0.00022739,4]
[330080572,1718989392934,-899.57,0.00022739,4]
[330080573,1718989392976,-1342.26,0.00022739,4]
[330080574,1718989393015,-354.76117684,0.00022801,2]
[330080575,1718989393055,-1312.847618,0.0002289,2]
[330080576,1718989393094,-446012.160924,0.0002298,2]
[330080577,1718989393134,-163.56645458,0.00022989,2]
[330080578,1718989393174,-5000.0,0.00022989,2]
[330080579,1718989393211,-364.67222398,0.00022989,2]
[330080580,1718989393248,-209.38100041,0.00022989,2]
[330080581,1718989393286,-2430.39590393,0.00022989,2]
[330080582,1718989393322,-659.0,0.0002299,2]
[330080583,1718989393359,-4450327.75042272,0.0002299,5]
[330080584,1718989423088,-154.5,0.00021644,2]
[330080585,1718989423128,-500.0,0.00021917,4]
[330080586,1718989423183,-500.0,0.00021917,4]
[330080587,1718989423228,-500.0,0.00021917,4]
[330080588,1718989423270,-500.0,0.00021917,4]
[330080589,1718989423311,-1466.84,0.00021917,4]
[330080590,1718989423359,-500.0,0.00021917,4]
[330080591,1718989423398,-500.0,0.00021917,4]
[330080592,1718989423437,-500.0,0.00021917,4]
[330080593,1718989423477,-500.0,0.00021917,4]
[330080594,1718989423518,-585.36,0.00021917,4]
[330080595,1718989423560,-509.69,0.00021917,4]
[330080596,1718989423601,-667.28,0.00021917,4]
[330080597,1718989423643,-500.0,0.00021917,4]
[330080598,1718989423691,-4516.86,0.00021917,4]
[330080599,1718989423735,-500.0,0.00021917,4]
[330080600,1718989423781,-500.0,0.00021917,4]
[330080601,1718989423822,-19547.2,0.00021917,4]
[330080602,1718989423865,-500.0,0.00021917,4]
[330080603,1718989423908,-2179.3,0.00021917,4]
[330080604,1718989423958,-858.28,0.00021917,4]
[330080605,1718989424000,-500.0,0.00021917,4]
[330080606,1718989424042,-906.35,0.00021917,4]
[330080607,1718989424083,-500.0,0.00021917,4]
[330080608,1718989424132,-1794.24,0.00021917,4]
[330080609,1718989424180,-6153.32,0.00021917,4]
[330080610,1718989424220,-500.0,0.00021917,4]
[330080611,1718989424262,-559.84,0.00021917,4]
[330080612,1718989424305,-500.0,0.00021917,4]
[330080613,1718989424346,-500.0,0.0002218,4]
[330080614,1718989424661,-500.0,0.0002218,4]
[330080615,1718989424705,-500.0,0.0002218,4]
[330080616,1718989424746,-1073.61,0.0002218,4]
[330080617,1718989424788,-500.0,0.0002218,4]
[330080618,1718989424830,-1028.37,0.0002218,4]
[330080619,1718989424870,-7018.38,0.0002218,4]
[330080620,1718989424911,-565.65,0.0002218,4]
[330080621,1718989424954,-1694.42,0.0002218,4]
[330080622,1718989424997,-500.0,0.0002218,4]
[330080623,1718989425039,-6329.47,0.0002218,4]
[330080624,1718989425087,-538.43,0.0002218,4]
[330080625,1718989425134,-500.0,0.0002218,4]
[330080626,1718989425183,-3123.88,0.0002218,4]
[330080627,1718989425232,-500.0,0.0002218,4]
[330080628,1718989425280,-1124.0,0.0002218,4]
[330080629,1718989425320,-1310.65,0.0002218,4]
[330080630,1718989425365,-500.0,0.0002218,4]
[330080631,1718989425406,-500.0,0.0002218,4]
[330080632,1718989425447,-500.0,0.0002219,4]
[330080633,1718989425486,-3990.63,0.0002219,4]
[330080634,1718989425525,-500.0,0.0002219,4]
[330080635,1718989425569,-6768.76,0.0002219,4]
[330080636,1718989425609,-500.0,0.0002219,4]
[330080637,1718989425653,-831.31,0.0002219,4]
[330080638,1718989425698,-7553.04,0.0002219,4]
[330080639,1718989425740,-1274.46,0.0002219,4]
[330080640,1718989425781,-500.0,0.00022191,4]
[330080641,1718989425823,-500.0,0.00022191,4]
[330080642,1718989425861,-500.0,0.00022191,4]
[330080643,1718989425905,-500.0,0.00022191,4]
[330080644,1718989425951,-1466.84,0.00022191,4]
[330080645,1718989426000,-500.0,0.00022191,4]
[330080646,1718989426043,-500.0,0.00022191,4]
[330080647,1718989426085,-500.0,0.00022191,4]
[330080648,1718989426127,-500.0,0.00022191,4]
[330080649,1718989426168,-585.36,0.00022191,4]
[330080650,1718989426208,-509.69,0.00022191,4]
[330080651,1718989426249,-667.28,0.00022191,4]
[330080652,1718989426290,-500.0,0.00022191,4]
[330080653,1718989426329,-4516.86,0.00022191,4]
[330080654,1718989426371,-500.0,0.00022191,4]
[330080655,1718989426413,-500.0,0.00022191,4]
[330080656,1718989426456,-19547.2,0.00022191,4]
[330080657,1718989426496,-500.0,0.00022191,4]
[330080658,1718989426538,-2179.3,0.00022191,4]
[330080659,1718989426580,-858.28,0.00022191,4]
[330080660,1718989426622,-906.35,0.00022191,4]
[330080661,1718989426664,-500.0,0.00022191,4]
[330080662,1718989426707,-1794.24,0.00022191,4]
[330080663,1718989426748,-500.0,0.00022191,4]
[330080664,1718989426788,-6153.32,0.00022191,4]
[330080665,1718989426828,-500.0,0.00022191,4]